Cogmind - Beta 11.1 @@@ ROGUE MODE // 2022.05.12 @ 22:29:25 Player: Olga Result: Self-destructed Performance ------------- Evolutions (4) 2000 Regions Visited (5) 1000 Robots Destroyed (8) 40 Value Destroyed (224) 224 Prototype IDs (1) 20 Alien Tech Used (0) 0 Bonus (834) 834 TOTAL SCORE: 4118 Bonus ------- Pacifist 834 Cogmind --------- Core Integrity 850/850 Matter 179/300 Energy 100/100 System Corruption 0% Temperature Cool (0) Movement Flying (32) Location -6/Factory Parts ------- > --- POWER (1) -------- (None) > --- PROPULSION (6) --- Cesium-ion Thruster Improved VTOL Module > --- UTILITY (6) ------ (None) > --- WEAPON (2) ------- (None) > --- INVENTORY (5) ---- Light Ion Engine Light Ion Engine Aluminum Leg Wheel Medium Laser Peak State ------------ > --- POWER ------------ (None) > --- PROPULSION ------- Cesium-ion Thruster Improved VTOL Module Improved VTOL Module > --- UTILITY ---------- (None) > --- WEAPON ----------- Mini Grenade Launcher > --- INVENTORY -------- Light Ion Engine Light Ion Engine Aluminum Leg Wheel Medium Laser [Rating: 13] Favorites ----------- Power Light Ion Engine Engine Light Ion Engine Propulsion Light Treads Treads Light Treads Leg Aluminum Leg Flight Unit Cesium-ion Thruster Utility Small Storage Unit Storage Small Storage Unit Weapon Medium Laser Energy Gun Medium Laser Ballistic Gun Light Assault Rifle Launcher Mini Grenade Launcher Build | -11 -10 -9 -8 -7 -6 ------- Run | Scr Mat Mat Mat Fac Fac Slots Evolved 8 | . . 2 2 2 2 Power . | . . . . . . Propulsion 4 | . . 2 . 2 . Utility 4 | . . . 2 . 2 Weapon . | . . . . . . Parts Attached 7 | 3 . . . 4 . Power . | . . . . . . Engine . | . . . . . . Core . | . . . . . . Reactor . | . . . . . . Propulsion 5 | 2 . . . 3 . Treads 2 | 2 . . . . . Leg . | . . . . . . Wheel . | . . . . . . Hover . | . . . . . . Flight 3 | . . . . 3 . Utility . | . . . . . . Device . | . . . . . . Storage . | . . . . . . Processor . | . . . . . . Hackware . | . . . . . . Protection . | . . . . . . Artifact . | . . . . . . Weapon 2 | 1 . . . 1 . Energy Gun 1 | 1 . . . . . Energy Cannon . | . . . . . . Ballistic Gun . | . . . . . . Ballistic Cannon . | . . . . . . Launcher 1 | . . . . 1 . Special Weapon . | . . . . . . Impact Weapon . | . . . . . . Slashing Weapon . | . . . . . . Piercing Weapon . | . . . . . . Special Melee Weapon . | . . . . . . Unidentified Prototypes 1 | . . . . 1 . Parts Lost 2 | . . . . 1 1 Power . | . . . . . . Propulsion 1 | . . . . 1 . Utility . | . . . . . . Weapon 1 | . . . . . 1 Highest Loss Streak 1 | . . . . 1 1 To Critical Strikes . | . . . . . . Average Slot Usage (%) 26 | . 42 33 27 21 20 Treads 12 | . 28 22 18 5 . Flight 4 | . . . . 8 13 Energy Gun 5 | . 14 11 9 . . Launcher 3 | . . . . 6 6 Naked Turns . | . . . . . . Heaviest Build 2 | 2 2 2 2 2 1 Greatest Support 15 | 3 3 3 3 15 10 Greatest Overweight (x) . | . . . . . . Average Overweight (x) . | . . . . . . Largest Inventory Capacity 8 | 8 5 5 5 5 5 Average Capacity 5 | 7 5 5 5 5 5 Most Carried 7 | 7 4 5 5 5 5 Average Carried 4 | 6 4 4 5 5 5 Final Capacity 5 | 5 5 5 5 5 5 Final Carried 5 | 4 4 5 5 5 5 Class Distribution -------------------- 74% | Mutant 25% | Sprinter Dominant Class ---------------- Mutant | -9/Materials Mutant | -8/Materials Mutant | -7/Factory Sprinter | -6/Factory Resources | -11 -10 -9 -8 -7 -6 ----------- Run | Scr Mat Mat Mat Fac Fac Matter Collected 213 | 200 . . . 13 . Remotely . | . . . . . . Salvage Created 151 | . . . . 151 . Parts 9 | . . . . 9 . Haulers Intercepted . | . . . . . . Recyclers Shooed . | . . . . . . Parts Field Recycled . | . . . . . . Retrieved Matter . | . . . . . . Parts Self-Destructed . | . . . . . . Prevented . | . . . . . . Kills | -11 -10 -9 -8 -7 -6 ------- Run | Scr Mat Mat Mat Fac Fac Combat Hostiles Destroyed 6 | . . . . 6 . AOE 6 | . . . . 6 . Classes Destroyed 3 | . . . . 3 . Worker 2 | . . . . 2 . Swarmer 4 | . . . . 4 . Grunt 2 | . . . . 2 . Best Kill Streak 8 | . . . . 8 . Combat Bots Only 6 | . . . . 6 . Max Kills in Single Turn 3 | . . . . 3 . Gunslinging . | . . . . . . Exploded 3 | . . . . 3 . Melee . | . . . . . . Uniques/NPCs Destroyed . | . . . . . . Combat | -11 -10 -9 -8 -7 -6 -------- Run | Scr Mat Mat Mat Fac Fac Damage Taken 435 | . 4 . 171 240 20 Core 158 | . . . 29 129 . Absorbed by Shields . | . . . . . . Core Remaining (%) 95 | 100 100 100 94 81 . Volleys Fired 8 | . . . . 8 . Largest 1 | . . . . 1 . Hottest 30 | . . . . 30 . Shots Fired 8 | . . . . 8 . Gun . | . . . . . . Cannon . | . . . . . . Launcher 8 | . . . . 8 . Special . | . . . . . . Kinetic . | . . . . . . Thermal . | . . . . . . Explosive 8 | . . . . 8 . Electromagnetic . | . . . . . . Robot Hit Streak 1 | . . . . 1 . Robot Miss Streak 1 | . . . . 1 . Penetration Max . | . . . . . . Secondary Targets . | . . . . . . Shots Hit Robots 1 | . . . . 1 . Core Hits 7 | . . . . 7 . Critical Kills . | . . . . . . Critical Parts Destroyed . | . . . . . . Critical Strikes . | . . . . . . Melee Attacks . | . . . . . . Impact . | . . . . . . Slashing . | . . . . . . Piercing . | . . . . . . Sneak Attacks . | . . . . . . Combat Hostiles . | . . . . . . Follow-up Attacks . | . . . . . . Damage Inflicted 511 | . 9 . . 502 . Guns . | . . . . . . Cannons . | . . . . . . Explosions 502 | . . . . 502 . Melee . | . . . . . . Ramming 9 | . 9 . . . . Kinetic . | . . . . . . Thermal 250 | . . . . 250 . Explosive 252 | . . . . 252 . Electromagnetic . | . . . . . . Impact . | . . . . . . Slashing . | . . . . . . Piercing . | . . . . . . Highest Corruption . | . . . . . . Average Corruption . | . . . . . . Corruption Purged . | . . . . . . Corruption Blocked . | . . . . . . Overload Shots . | . . . . . . Overflow Damage 23 | . . . . 23 . Projectiles . | . . . . . . Explosions 23 | . . . . 23 . Melee . | . . . . . . Knockbacks . | . . . . . . Impact . | . . . . . . Kinetic . | . . . . . . Secondary . | . . . . . . Self-Inflicted Damage 105 | . 4 . . 101 . Shots 3 | . . . . 3 . Rammed 2 | . 2 . . . . Targets Rammed 2 | . 2 . . . . Kicked . | . . . . . . Crushed . | . . . . . . Highest Temperature 1 | . . . . 1 . Average Temperature 1 | . . . . 1 . Received Heat Transfer 123 | . . . 90 24 9 Siege Activations . | . . . . . . Robots Corrupted . | . . . . . . Combat Hostiles . | . . . . . . Parts Fried . | . . . . . . Impact Corruptions . | . . . . . . Robots Melted . | . . . . . . Combat Hostiles . | . . . . . . Parts Melted . | . . . . . . Heat Transferred 150 | . . . . 150 . Parts Sabotaged . | . . . . . . Parts Stolen . | . . . . . . Parts Stripped . | . . . . . . Power Chain Reactions . | . . . . . . Missiles Intercepted . | . . . . . . Alert | -11 -10 -9 -8 -7 -6 ------- Run | Scr Mat Mat Mat Fac Fac Peak Influence 279 | . 15 20 38 279 136 Initial 136 | . . 5 8 16 136 Average 67 | . 4 8 32 115 135 Maximum Alert Level 1 | . . . . 1 . Low Security (%) 88 | 100 100 100 100 72 100 Level 1 11 | . . . . 27 . Level 2 . | . . . . . . Level 3 . | . . . . . . Level 4 . | . . . . . . Level 5 . | . . . . . . High Security . | . . . . . . Max Security . | . . . . . . Squads Dispatched 2 | . . . 1 1 . Investigation . | . . . . . . Extermination . | . . . . . . Reinforcement 2 | . . . 1 1 . Assault . | . . . . . . Garrison . | . . . . . . Intercept . | . . . . . . Searches Triggered . | . . . . . . Construction Impeded . | . . . . . . Haulers Reinforced . | . . . . . . Active Scanning Responses . | . . . . . . Cargo Convoy Interrupts . | . . . . . . Stealth | -11 -10 -9 -8 -7 -6 --------- Run | Scr Mat Mat Mat Fac Fac Distress Signals 2 | . . . 2 . . Communications Jammed . | . . . . . . Distress Signals . | . . . . . . Times Spotted 22 | . 1 1 9 8 3 Peak Tracking Total 8 | . 1 1 8 7 3 Tactical Retreats . | . . . . . . Traps | -11 -10 -9 -8 -7 -6 ------- Run | Scr Mat Mat Mat Fac Fac Traps Triggered . | . . . . . . Indirectly . | . . . . . . Trap Hack Attempts . | . . . . . . Triggered . | . . . . . . Disarmed . | . . . . . . Reprogrammed . | . . . . . . Reused . | . . . . . . Traps Extracted . | . . . . . . Installed . | . . . . . . Triggered . | . . . . . . Machines | -11 -10 -9 -8 -7 -6 ---------- Run | Scr Mat Mat Mat Fac Fac Machines Disabled 2 | . . . . 2 . Max in Single Turn 1 | . . . . 1 . Machines Sabotaged . | . . . . . . Garrisons Compromised . | . . . . . . Overloaded Fab Kills . | . . . . . . Hacking | -11 -10 -9 -8 -7 -6 --------- Run | Scr Mat Mat Mat Fac Fac Machines Accessed . | . . . . . . Terminals . | . . . . . . Fabricators . | . . . . . . Repair Stations . | . . . . . . Recycling Units . | . . . . . . Scanalyzers . | . . . . . . Garrison Access . | . . . . . . Total Hacks . | . . . . . . Successful . | . . . . . . Failed . | . . . . . . Catastrophic . | . . . . . . Database Lockouts . | . . . . . . Manual . | . . . . . . Terminals . | . . . . . . Fabricators . | . . . . . . Repair Stations . | . . . . . . Recycling Units . | . . . . . . Scanalyzers . | . . . . . . Garrison Access . | . . . . . . Terminal Hacks . | . . . . . . Fabricator Hacks . | . . . . . . Repair Station Hacks . | . . . . . . Recycling Unit Hacks . | . . . . . . Scanalyzer . | . . . . . . Garrison Access Hacks . | . . . . . . Unauthorized Hacks . | . . . . . . Terminals . | . . . . . . Fabricators . | . . . . . . Repair Stations . | . . . . . . Recycling Units . | . . . . . . Scanalyzers . | . . . . . . Garrison Access . | . . . . . . Data Cores Recovered . | . . . . . . Used . | . . . . . . Hacking Detections . | . . . . . . Full Trace Events . | . . . . . . Feedback Events . | . . . . . . Feedback Blocked . | . . . . . . Robot Schematics Acquired . | . . . . . . Robots Built . | . . . . . . Authchips . | . . . . . . Time . | . . . . . . Total Robot Build Rating . | . . . . . . Part Schematics Acquired . | . . . . . . Parts Built . | . . . . . . Authchips . | . . . . . . Time . | . . . . . . Total Part Build Rating . | . . . . . . Parts Repaired . | . . . . . . Time . | . . . . . . Parts Recycled . | . . . . . . Recycled Matter . | . . . . . . Retrieved Matter . | . . . . . . Retrieved Components . | . . . . . . Parts Scanalyzed . | . . . . . . Part Schematics Acquired . | . . . . . . Parts Damaged . | . . . . . . Bothacking | -11 -10 -9 -8 -7 -6 ------------ Run | Scr Mat Mat Mat Fac Fac Used RIF Installer . | . . . . . . Robots Hacked . | . . . . . . Non-combat . | . . . . . . Combat . | . . . . . . Robot Hacks Applied . | . . . . . . Relay Couplers Released . | . . . . . . Fabnet Peak Effective % . | . . . . . . Robots Rewired . | . . . . . . Allies Hacked . | . . . . . . Hacks Repelled . | . . . . . . Allies | -11 -10 -9 -8 -7 -6 -------- Run | Scr Mat Mat Mat Fac Fac Total Allies . | . . . . . . Largest Group . | . . . . . . Highest-Rated Group . | . . . . . . Highest-Rated Ally . | . . . . . . Total Orders . | . . . . . . Ally Attacks . | . . . . . . Total Damage . | . . . . . . Kills . | . . . . . . Allies Corrupted . | . . . . . . Allies Melted . | . . . . . . Intel | -11 -10 -9 -8 -7 -6 ------- Run | Scr Mat Mat Mat Fac Fac Robot Analysis Total . | . . . . . . Derelict Logs Recovered . | . . . . . . Drone Launches . | . . . . . . Drone Recoveries . | . . . . . . Exploration | -11 -10 -9 -8 -7 -6 ------------- Run | Scr Mat Mat Mat Fac Fac Turns Passed 198 | 6 18 42 32 84 16 Spaces Moved 388 | 1 31 82 64 163 47 Core 216 | 1 31 82 64 38 . Treads . | . . . . . . Legs . | . . . . . . Wheels . | . . . . . . Hover . | . . . . . . Flight 172 | . . . . 125 47 Fastest Speed 29 | 50 50 50 50 29 32 Average Speed 42 | 50 50 50 50 37 32 Slowest Speed 50 | 50 50 50 50 50 32 Overloaded Moves . | . . . . . . Propulsion Burnouts . | . . . . . . Robots Hopped 3 | . . . . 2 1 Cave-ins Triggered . | . . . . . . Exploration Rate (%) 7 | 2 10 12 11 9 3 Regions Visited 5 Branch Regions . Pre-discovered Areas . | . . . . . . Known Exits Taken . | . . . . . . Unknown Exits Taken 5 | 1 1 1 1 1 . Scrap Searched . | . . . . . . Spaces Dug . | . . . . . . Terrain Destroyed 102 | . . . . 102 . Melee . | . . . . . . Projectile . | . . . . . . AOE 102 | . . . . 102 . Terrain Rammed . | . . . . . . Walls Destroyed . | . . . . . . Machines Disabled . | . . . . . . Actions | -11 -10 -9 -8 -7 -6 --------- Run | Scr Mat Mat Mat Fac Fac Total 406 | 9 32 82 63 174 46 Wait . | . . . . . . Move 377 | . 30 81 63 158 45 Hop 3 | . . . . 2 1 Pick Up 1 | . . 1 . . . Fast Attach 3 | . . . . 3 . Attach 3 | 3 . . . . . Detach 3 | 3 . . . . . Swap 1 | . . . . 1 . Drop 5 | 3 . . . 2 . Fire 8 | . . . . 8 . Melee . | . . . . . . Ram 2 | . 2 . . . . Kick . | . . . . . . Crush . | . . . . . . Escape Stasis . | . . . . . . Rewire . | . . . . . . Trap . | . . . . . . Miscellaneous . | . . . . . . Route ------- -11/Scrapyard -10/Materials -9/Materials -8/Materials -7/Factory -6/Factory History --------- Turn | Location | Event 7 | -11/Scrapyard | Discovered new exit (range 0) 7 | -11/Scrapyard | Entered Materials 23 | -10/Materials | Discovered new exit (range 5) 25 | -10/Materials | Entered another Materials area 25 | -9/Materials | Evolved 2 slots: Propulsion x2 61 | -9/Materials | Discovered new exit (range 12) 67 | -9/Materials | Entered another Materials area 67 | -8/Materials | Evolved 2 slots: Utility x2 92 | -8/Materials | Discovered new exit (range 15) 99 | -8/Materials | Entered Factory 99 | -7/Factory | Evolved 2 slots: Propulsion x2 181 | -7/Factory | Discovered new exit (range 5) 183 | -7/Factory | Entered another Factory area 183 | -6/Factory | Evolved 2 slots: Utility x2 199 | -6/Factory | Self-destructed Last Messages --------------- 00152_ Acquired Prototype Flight Unit. 00152_ Identified Imp. VTOL Module. 00152_ K-01 Serf cleans the Fusion Modulator. 00154_ Acquired Imp. VTOL Module. 00155_ S-27 Virus destroyed. 00155_ K-01 Serf destroyed. 00160_ Fusion Modulator explodes. 00160_ G-47 Trooper destroyed. 00160_ K-01 Serf destroyed. 00160_ Imp. VTOL Module destroyed. 00160_ Destroyed Imp. VTOL Module. 00161_ Acquired 13 matter. 00165_ Nuclear Reactor explodes. 00178_ The unstable cave ceiling collapses. 00181_ EXIT=FOUND PARAMETERS=UTILITY+2 LOCATION=UNKNOWN GOAL=ESCAPE 00195_ ALERT: All DSF locations entering lockdown mode. 00198_ Mni. Grenade Launcher destroyed. Map ----- +----------------------------------------------------+ | #?????????????????? | | ? """ """ #?????????????????? | | ???? """ """ #### ###?????????????????? | | ?# """ """ #??#+######??????????????? | | ?# # #??????????????? | | ?# """ """ + #??????????????? | | ???? """ """ # """ """ #??????????????? | | ?# """ """ #??"" "??????????????????? | | ?# #???? "??????????????????? | | ?# """ """ #????????????????????????? | | ???? """ """ #????????????????????????? | | ?# """ """ #????????????????????????? | | ?# #????????????????????????? | | ?# """ """ #???????????##???????????? | | ?# ? """ """ #?????????"" #???????????? | | ?# """ """ #????????S"" #???????????? | | ?# #??????"" "" #???????????? | | ?# #???? #???????????? | | ?# "F "" #?? #???????????? | | ?# """"" # #???????????? | | ?# """"" + """"""" #???????????? | | ?# # """"""" #???????????? | | ?# # k""""""" #???????????? | | ?###+####### # """"""" #???????????? | | ???????????# # #???????????? | | ???????????+ # @ #???????????? | | ???????????## #?#######+####???????????? | | ????????????# #???????# #??????????????? | | ????????????# #???????# #??????????????? | | ????????????# ######### #??????????????? | | ????????????# #??????????????? | | ????????????# #??????????????? | | ???????????# #??????????????? | | ???????????+ #??????????????? | | ???????????# #??????????????? | | ???????????##+###+## #??????????????? | | ???????????????????# ?????????????? | | ???????????????????####+###????????????? | | ???????????????????????????????????????? | | ???????????????????????????????????????? | | ???????????????????????????????????????? | | ???????????????????????????????????????? | | ???????????????????????????????????????? | | ???????????????????????????????????????? | | ???????????????????????????????????????? | | ???????????????????????????????????????? | | ???????????????????????????????????????? | | ???????????????????????????????????????? | | ???????????????????????????????????????? | | ???????????????????????????????????????? | +----------------------------------------------------+ Best States ------------- Heat Dissipation 37 Energy Generation 5 Energy Capacity 100 Matter Stores 276 Matter Capacity 300 Sight Range 16 Terrain Scan Density 10 Evasion (%) 64 Item Schematics ----------------- None Robot Schematics ------------------ None Fabricated ------------ Nothing Alien Tech Used ----------------- None Achievements -------------- None Challenges ------------ None Game ------ Seed helloworld Manual? 1 Play Time 00:06:33 Cumulative 251.3 hours Start 2022.05.12 @ 22:17:06 End 2022.05.12 @ 22:29:25 Sessions 1 Manual Loads 0 Difficulty Rogue Special Mode None Game No. 363 Rogue 360 Adventurer 0 Explorer 3 Win Type - Total 8 Types 8/0/0/0/0/0/0/0/0 Lore% 71 Gallery% 75 Achievement% 62 Wizard Run 0 Options --------- ASCII 1 Keyboard 1 Movement Vi Keybinds 0 Fullscreen 1 Font 18/SmallcapsGlow Map View 76x50 Tactical HUD 1 Map Filters NONE Filters NONE Steam 1 RUN: cd7a3017-ef18-452b-bba5-44dc4c0f5eda